fUSD/lending_fUSD_20240628
["ID","MTS","AMOUNT","RATE_DAILY","PERIOD"]
[330577194,1719581531207,-500.0,0.00022191,3]
[330577195,1719581531216,-790.85,0.00022191,3]
[330577196,1719581531226,-1315.66,0.00022191,3]
[330577197,1719581531236,-930.55,0.00022191,3]
[330577198,1719581531245,-500.0,0.00022191,3]
[330577199,1719581531255,-1670.71,0.00022191,3]
[330577200,1719581531265,-1189.97,0.00022191,3]
[330577201,1719581531275,-1218.88,0.00022191,3]
[330577202,1719581531285,-500.0,0.00022191,2]
[330577203,1719581531294,-1119.51,0.00022191,3]
[330577204,1719581531304,-2631.32,0.00022191,3]
[330577205,1719581531314,-750.26,0.00022191,3]
[330577206,1719581531323,-1504.46,0.00022191,3]
[330577207,1719581531333,-500.0,0.00022191,3]
[330577208,1719581531343,-1597.63,0.00022191,3]
[330577209,1719581531352,-731.52,0.00022191,3]
[330577210,1719581531362,-500.0,0.00022191,3]
[330577211,1719581531372,-1879.32,0.00022191,3]
[330577212,1719581531381,-500.0,0.00022191,3]
[330577213,1719581531391,-1301.36,0.00022191,3]
[330577214,1719581531401,-538.76,0.00022191,3]
[330577215,1719581531410,-500.0,0.00022191,3]
[330577216,1719581531420,-500.0,0.00022191,3]
[330577217,1719581531431,-1143.78,0.00022191,3]
[330577218,1719581531442,-500.0,0.00022191,2]
[330577219,1719581531452,-500.0,0.00022191,3]
[330577220,1719581531461,-500.0,0.00022191,3]
[330577221,1719581531471,-500.0,0.00022191,3]
[330577222,1719581531481,-554.8,0.00022191,3]
[330577223,1719581531492,-500.0,0.00022191,3]
[330577224,1719581531502,-2901.03,0.00022191,3]
[330577225,1719581531515,-1548.67,0.00022191,3]
[330577226,1719581531525,-511.8,0.00022191,3]
[330577227,1719581531535,-2485.2,0.00022191,3]
[330577228,1719581531544,-500.0,0.00022191,3]
[330577229,1719581531554,-531.92,0.00022191,3]
[330577230,1719581531563,-1224.26,0.00022191,3]
[330577231,1719581531574,-500.0,0.00022191,3]
[330577232,1719581531585,-1402.6,0.00022191,3]
[330577233,1719581531595,-169.23724934,0.00022191,3]
[330577234,1719581531605,-500.0,0.00022191,3]
[330577235,1719581531614,-1300.34,0.00022191,3]
[330577236,1719581531624,-980.37,0.00022191,3]
[330577237,1719581531635,-343.35601217,0.00022191,3]
[330577238,1719581531646,-3943.37,0.00022191,3]
[330577239,1719581531656,-1173.47,0.00022191,3]
[330577240,1719581531665,-500.0,0.00022191,3]
[330577241,1719581531675,-500.0,0.00022191,3]
[330577242,1719581531684,-500.0,0.00022191,3]
[330577243,1719581531693,-2122.78,0.00022191,3]
[330577244,1719581531703,-500.0,0.00022191,3]
[330577245,1719581531713,-700.74,0.00022191,3]
[330577246,1719581531723,-500.0,0.00022191,3]
[330577247,1719581531733,-2694.47,0.00022191,3]
[330577248,1719581531743,-2269.54,0.00022191,3]
[330577249,1719581531753,-1411.57,0.00022191,3]
[330577250,1719581531763,-1915.65,0.00022191,3]
[330577251,1719581531772,-1443.34,0.00022191,3]
[330577252,1719581531781,-1782.46,0.00022191,3]
[330577253,1719581531791,-2259.69,0.00022191,3]
[330577254,1719581531800,-500.0,0.00022191,3]
[330577255,1719581531810,-1144.19,0.00022191,3]
[330577256,1719581531820,-626.04,0.00022191,3]
[330577257,1719581531830,-500.0,0.00022191,3]
[330577258,1719581531840,-1933.95,0.00022191,3]
[330577259,1719581531850,-500.0,0.00022191,3]
[330577260,1719581531859,-1200.64,0.00022191,3]
[330577261,1719581531869,-500.0,0.00022191,3]
[330577262,1719581531879,-500.0,0.00022191,3]
[330577263,1719581531888,-500.0,0.00022191,3]
[330577264,1719581531898,-500.0,0.00022191,3]
[330577265,1719581531908,-1245.79,0.00022191,3]
[330577266,1719581531917,-3679.52,0.00022191,3]
[330577267,1719581531927,-788.2,0.00022191,3]
[330577268,1719581531936,-500.0,0.00022191,3]
[330577269,1719581531946,-1930.1,0.00022191,3]
[330577270,1719581531956,-1520.55,0.00022191,3]
[330577271,1719581531965,-856.29,0.00022191,3]
[330577272,1719581531975,-1084.78,0.00022191,3]
[330577273,1719581531985,-755.66,0.00022191,3]
[330577274,1719581531994,-939.08,0.00022191,3]
[330577275,1719581532004,-500.0,0.00022191,3]
[330577276,1719581532013,-1156.32,0.00022191,3]
[330577277,1719581532023,-500.0,0.00022191,3]
[330577278,1719581532032,-1484.53,0.00022191,3]
[330577279,1719581532042,-819.59,0.00022191,3]
[330577280,1719581532052,-1281.03,0.00022191,3]
[330577281,1719581532061,-1418.89,0.00022191,3]
[330577282,1719581532071,-500.0,0.00022191,3]
[330577283,1719581532081,-500.0,0.00022191,3]
[330577284,1719581532093,-500.0,0.00022191,3]
[330577285,1719581532103,-1394.68,0.00022191,3]
[330577286,1719581532118,-1289.19,0.00022191,3]
[330577287,1719581532128,-854.39,0.00022191,3]
[330577288,1719581532138,-500.0,0.00022191,3]
[330577289,1719581532148,-3187.49,0.00022191,3]
[330577290,1719581532157,-1050.74,0.00022191,3]
[330577291,1719581532166,-1773.83,0.00022191,3]
[330577292,1719581532176,-393.07,0.00022191,3]
[330577293,1719581532185,-1182.56,0.00022191,3]
[330577294,1719581532195,-4015.68,0.00022191,3]
[330577295,1719581532204,-606.34,0.00022191,3]
[330577296,1719581532214,-1207.66,0.00022191,3]
[330577297,1719581532223,-11118.41,0.00022191,3]
[330577298,1719581532233,-492.39385908,0.00022191,3]
[330577299,1719581532242,-500.0,0.00022191,3]
[330577300,1719581532252,-1027.22,0.00022191,3]
[330577301,1719581532261,-909.12,0.00022191,3]
[330577302,1719581532272,-500.0,0.00022191,3]
[330577303,1719581532282,-500.0,0.00022191,3]
[330577304,1719581532292,-2109.42,0.00022191,3]
[330577305,1719581532302,-500.0,0.00022191,3]
[330577306,1719581532312,-2224.85,0.00022191,3]
[330577307,1719581532321,-1433.86,0.00022191,3]
[330577308,1719581532331,-500.0,0.00022191,3]
[330577309,1719581532343,-500.0,0.00022191,3]
[330577310,1719581532353,-500.0,0.00022191,3]
[330577311,1719581532363,-500.0,0.00022191,3]
[330577312,1719581532376,-639.12,0.00022191,3]
[330577313,1719581532385,-3373.14,0.00022191,3]
[330577314,1719581532395,-1039.41,0.00022191,3]
[330577315,1719581532405,-525.53,0.00022191,3]
[330577316,1719581532415,-500.0,0.00022191,3]
[330577317,1719581532428,-1382.55,0.00022191,3]
[330577318,1719581532438,-500.0,0.00022191,3]
[330577319,1719581532449,-1766.72,0.00022191,3]
[330577320,1719581532459,-881.88,0.00022191,3]
[330577321,1719581532470,-1305.84,0.00022191,3]
[330577322,1719581532482,-500.0,0.00022191,3]
[330577323,1719581532491,-865.58,0.00022191,3]
[330577324,1719581532502,-1690.78,0.00022191,3]
[330577325,1719581532514,-2429.33,0.00022191,3]
[330577326,1719581532524,-2610.51,0.00022191,3]
[330577327,1719581532534,-500.0,0.00022191,3]
[330577328,1719581532544,-3640.69,0.00022191,3]
[330577329,1719581532554,-1065.83,0.00022191,3]
[330577330,1719581532563,-500.0,0.00022191,3]
[330577331,1719581532573,-500.0,0.00022191,3]
[330577332,1719581532583,-500.0,0.00022191,3]
[330577333,1719581532597,-163.11239909,0.00022191,3]
[330577334,1719581532608,-6031.77,0.00022191,3]
[330577335,1719581532618,-927.31,0.00022191,3]
[330577336,1719581532628,-500.0,0.00022191,3]
[330577337,1719581532638,-500.0,0.00022191,3]
[330577338,1719581532648,-1027.34,0.00022191,3]
[330577339,1719581532658,-992.66,0.00022191,3]
[330577340,1719581532668,-1368.85,0.00022191,3]
[330577341,1719581532677,-500.0,0.00022191,3]
[330577342,1719581532687,-659.44,0.00022191,3]
[330577343,1719581532697,-661.85,0.00022191,3]
[330577344,1719581532707,-2995.16,0.00022191,3]
[330577345,1719581532717,-1213.4,0.00022191,3]
[330577346,1719581532727,-1126.79,0.00022191,3]
[330577347,1719581532736,-2342.86,0.00022191,3]
[330577348,1719581532746,-1404.38,0.00022191,3]
[330577349,1719581532756,-554.59,0.00022191,3]
[330577350,1719581532766,-2099.81,0.00022191,3]
[330577351,1719581532776,-500.0,0.00022191,3]
[330577352,1719581532786,-1002.11,0.00022191,3]
[330577353,1719581532797,-3678.51,0.00022191,3]
[330577354,1719581532811,-643.23,0.00022191,3]
[330577355,1719581532822,-786.12,0.00022191,3]
[330577356,1719581532834,-1207.55,0.00022191,3]
[330577357,1719581532849,-500.0,0.00022191,3]
[330577358,1719581532860,-845.27,0.00022191,3]
[330577359,1719581532873,-754.57,0.00022191,3]
[330577360,1719581532885,-5337.73,0.00022191,3]
[330577361,1719581532895,-1386.67,0.00022191,3]
[330577362,1719581532906,-500.0,0.00022191,3]
[330577363,1719581532916,-1014.0,0.00022191,3]
[330577364,1719581532926,-911.43,0.00022191,3]
[330577365,1719581532935,-1466.36,0.00022191,3]
[330577366,1719581532945,-576.6995705,0.00022191,3]
[330577367,1719581532956,-3812.46,0.00022191,3]
[330577368,1719581532966,-1058.74,0.00022191,3]
[330577369,1719581532976,-997.7,0.00022191,3]
[330577370,1719581532986,-4068.22,0.00022191,3]
[330577371,1719581532996,-500.0,0.00022191,3]
[330577372,1719581533006,-500.0,0.00022191,3]
[330577373,1719581533016,-500.0,0.00022191,3]
[330577374,1719581533026,-1837.07,0.00022191,3]
[330577375,1719581533036,-500.0,0.00022191,3]
[330577376,1719581533046,-500.0,0.00022191,3]
[330577377,1719581533056,-1046.48,0.00022191,3]
[330577378,1719581533065,-500.0,0.00022191,3]
[330577379,1719581533075,-500.0,0.00022191,3]
[330577380,1719581533085,-500.0,0.00022191,3]
[330577381,1719581533096,-500.0,0.00022191,3]
[330577382,1719581533108,-500.0,0.00022191,3]
[330577383,1719581533119,-500.0,0.00022191,3]
[330577384,1719581533130,-500.0,0.00022191,3]
[330577385,1719581533140,-1790.37,0.00022191,3]
[330577386,1719581533151,-500.0,0.00022191,3]
[330577387,1719581533161,-2000.64,0.00022191,3]
[330577388,1719581533172,-1186.46,0.00022191,3]
[330577389,1719581533182,-500.0,0.00022191,3]
[330577390,1719581533192,-500.0,0.00022191,3]
[330577391,1719581533202,-719.3,0.00022191,3]
[330577392,1719581533212,-3251.06,0.00022191,3]
[330577393,1719581533222,-988.84,0.00022191,3]
[330577394,1719581533232,-249.68514945,0.00022191,3]
[330577395,1719581533242,-638.89,0.00022191,3]
[330577396,1719581533252,-500.0,0.00022191,3]
[330577397,1719581533261,-709.49,0.00022191,3]
[330577398,1719581533271,-500.0,0.00022191,3]
[330577399,1719581533281,-5851.89,0.00022191,3]
[330577400,1719581533291,-1243.35,0.00022191,3]
[330577401,1719581533302,-6549.41,0.00022191,3]
[330577402,1719581533311,-3127.02,0.00022191,3]
[330577403,1719581533320,-2930.95,0.00022191,3]
[330577404,1719581533330,-1121.54,0.00022191,3]
[330577405,1719581533342,-500.0,0.00022191,3]
[330577406,1719581533358,-500.0,0.00022191,3]
[330577407,1719581533374,-851.08,0.00022191,3]
[330577408,1719581533389,-776.56,0.00022191,3]
[330577409,1719581533403,-1849.31,0.00022191,3]
[330577410,1719581533418,-2636.86,0.00022191,3]
[330577411,1719581533437,-500.0,0.00022191,3]
[330577412,1719581533454,-500.0,0.00022191,3]
[330577413,1719581533471,-1462.6,0.00022191,3]
[330577414,1719581533487,-500.0,0.00022191,3]
[330577415,1719581533502,-722.53,0.00022191,3]
[330577416,1719581533517,-550.86511317,0.00022191,3]
[330577417,1719581533532,-1534.46,0.00022191,3]
[330577418,1719581533547,-1920.81,0.00022191,3]
[330577419,1719581533561,-1966.76,0.00022191,3]
[330577420,1719581533572,-3455.8,0.00022191,3]
[330577421,1719581533588,-1645.58,0.00022191,3]
[330577422,1719581533602,-2653.03,0.00022191,3]
[330577423,1719581533618,-1485.53,0.00022191,3]
[330577424,1719581533632,-500.0,0.00022191,3]
[330577425,1719581533648,-389.92809535,0.00022191,3]
[330577426,1719581533661,-1022.75,0.00022191,3]
[330577427,1719581533673,-403.66723587,0.00022191,3]
[330577428,1719581533684,-1315.88,0.00022191,3]
[330577429,1719581533699,-500.0,0.00022191,3]
[330577430,1719581533714,-500.0,0.00022191,3]
[330577432,1719581533726,-1627.89,0.00022191,3]
[330577433,1719581533739,-780.56,0.00022191,3]
[330577434,1719581533755,-500.0,0.00022191,3]
[330577435,1719581533768,-1377.58,0.00022191,3]
[330577436,1719581533780,-500.0,0.00022191,3]
[330577437,1719581533800,-500.0,0.00022191,3]
[330577438,1719581533812,-4218.02,0.00022191,3]
[330577439,1719581533825,-500.0,0.00022191,3]
[330577440,1719581533838,-674.62,0.00022191,3]
[330577441,1719581533850,-500.0,0.00022191,3]
[330577442,1719581533862,-500.0,0.00022191,3]
[330577443,1719581533875,-514.37,0.00022191,3]
[330577444,1719581533888,-2978.97,0.00022191,3]
[330577445,1719581533903,-954.41,0.00022191,3]
[330577446,1719581533916,-1511.98,0.00022191,3]
[330577447,1719581533930,-7525.21,0.00022191,3]
[330577448,1719581533944,-763.25,0.00022191,3]
[330577449,1719581533958,-500.0,0.00022191,3]
[330577450,1719581533971,-810.94,0.00022191,3]
[330577451,1719581533984,-815.5,0.00022191,3]
[330577452,1719581533996,-500.0,0.00022191,3]
[330577453,1719581534010,-500.0,0.00022191,3]
[330577454,1719581534024,-1485.98,0.00022191,3]
[330577455,1719581534038,-500.0,0.00022191,3]
[330577456,1719581534051,-500.0,0.00022191,3]
[330577457,1719581534064,-500.0,0.00022191,3]
[330577458,1719581534077,-1836.96,0.00022191,3]
[330577459,1719581534090,-2470.1,0.00022191,3]
[330577460,1719581534104,-1386.57,0.00022191,3]
[330577461,1719581534118,-572.01,0.00022191,3]
[330577462,1719581534131,-517.73,0.00022191,3]
[330577463,1719581534146,-856.65,0.00022191,3]
[330577464,1719581534160,-1512.1,0.00022191,3]
[330577465,1719581534173,-1584.05,0.00022191,3]
[330577466,1719581534185,-758.53,0.00022191,3]
[330577467,1719581534198,-1076.21,0.00022191,3]
[330577468,1719581534211,-898.71,0.00022191,3]
[330577469,1719581534224,-1219.7,0.00022191,3]
[330577470,1719581534236,-692.9,0.00022191,3]
[330577471,1719581534248,-4004.99,0.00022191,3]
[330577472,1719581534261,-6874.99,0.00022191,3]
[330577473,1719581534274,-1336.68,0.00022191,3]
[330577474,1719581534286,-798.07,0.00022191,3]
[330577475,1719581534299,-500.0,0.00022191,3]
[330577476,1719581534311,-317.19915741,0.00022191,3]
[330577477,1719581534324,-155.74508908,0.00022191,3]
[330577478,1719581534336,-1201.59,0.00022191,3]
[330577479,1719581534348,-500.0,0.00022191,3]
[330577480,1719581534360,-1469.29,0.00022191,3]
[330577481,1719581534373,-500.0,0.00022191,3]
[330577482,1719581534385,-2287.08,0.00022191,3]
[330577483,1719581534397,-1323.12,0.00022191,3]
[330577484,1719581534410,-500.0,0.00022191,3]
[330577485,1719581534424,-897.44,0.00022191,3]
[330577486,1719581534444,-511.43,0.00022191,3]
[330577487,1719581534457,-660.68,0.00022191,3]
[330577488,1719581534470,-919.51,0.00022191,3]
[330577489,1719581534484,-1100.39,0.00022191,3]
[330577490,1719581534497,-578.27,0.00022191,3]
[330577491,1719581534509,-1443.4,0.00022191,3]
[330577492,1719581534521,-6645.26,0.00022191,3]
[330577493,1719581534534,-837.56,0.00022191,3]
[330577494,1719581534547,-2111.56,0.00022191,3]
[330577495,1719581534559,-1244.64,0.00022191,3]
[330577496,1719581534572,-645.54,0.00022191,3]
[330577497,1719581534585,-1835.87,0.00022191,3]
[330577498,1719581534600,-1450.85,0.00022191,3]
[330577499,1719581534611,-500.0,0.00022191,3]
[330577500,1719581534623,-500.0,0.00022191,3]
[330577501,1719581534636,-2439.85,0.00022191,3]
[330577502,1719581534648,-1096.06,0.00022191,3]
[330577503,1719581534661,-702.47,0.00022191,3]
[330577504,1719581534674,-598.44,0.00022191,3]
[330577505,1719581534686,-2014.08,0.00022191,3]
[330577506,1719581534700,-2164.99,0.00022191,3]
[330577507,1719581534713,-500.0,0.00022191,3]
[330577508,1719581534725,-500.0,0.00022191,3]
[330577509,1719581534737,-1770.49,0.00022191,3]
[330577510,1719581534750,-1514.61,0.00022191,3]
[330577511,1719581534763,-5010.18,0.00022191,3]
[330577512,1719581534775,-1634.2,0.00022191,3]
[330577513,1719581534788,-500.0,0.00022191,3]
[330577514,1719581534799,-1972.11,0.00022191,3]
[330577515,1719581534812,-981.91,0.00022191,3]
[330577516,1719581534824,-1289.86,0.00022191,3]
[330577517,1719581534837,-500.0,0.00022191,3]
[330577518,1719581534851,-1872.23,0.00022191,3]
[330577519,1719581534863,-957.61,0.00022191,3]
[330577520,1719581534875,-500.0,0.00022191,3]
[330577521,1719581534886,-689.93,0.00022191,3]
[330577522,1719581534898,-1346.02,0.00022191,3]
[330577523,1719581534910,-1937.52,0.00022191,3]
[330577524,1719581534923,-564.83,0.00022191,3]
[330577525,1719581534935,-8319.76,0.00022191,3]
[330577526,1719581534948,-1314.55,0.00022191,3]
[330577527,1719581534960,-500.0,0.00022191,3]
[330577528,1719581534974,-2235.79,0.00022191,3]
[330577529,1719581534987,-1278.6,0.00022191,3]
[330577530,1719581535000,-500.0,0.00022191,3]
[330577531,1719581535012,-500.0,0.00022191,3]
[330577532,1719581535025,-1157.09,0.00022191,3]
[330577533,1719581535038,-1730.25,0.00022191,3]
[330577534,1719581535050,-5355.41,0.00022191,3]
[330577535,1719581535064,-500.0,0.00022191,3]
[330577536,1719581535076,-2443.33,0.00022191,3]
[330577537,1719581535090,-500.0,0.00022191,3]
[330577538,1719581535101,-500.0,0.00022191,3]
[330577539,1719581535114,-500.0,0.00022191,3]
[330577540,1719581535126,-1941.38,0.00022191,3]
[330577541,1719581535138,-556.53,0.00022191,3]
[330577542,1719581535151,-2413.29,0.00022191,3]
[330577543,1719581535163,-500.0,0.00022191,3]
[330577544,1719581535175,-693.2,0.00022191,3]
[330577545,1719581535187,-5956.58,0.00022191,3]
[330577546,1719581535199,-1765.52,0.00022191,3]
[330577547,1719581535210,-802.57,0.00022191,3]
[330577548,1719581535222,-500.0,0.00022191,3]
[330577549,1719581535234,-500.0,0.00022191,3]
[330577550,1719581535246,-500.0,0.00022191,3]
[330577551,1719581535257,-500.0,0.00022191,3]
[330577552,1719581535269,-917.75,0.00022191,3]
[330577553,1719581535281,-1339.62,0.00022191,3]
[330577554,1719581535292,-500.0,0.00022191,3]
[330577555,1719581535303,-612.5,0.00022191,3]
[330577556,1719581535316,-500.0,0.00022191,3]
[330577557,1719581535328,-500.0,0.00022191,3]
[330577558,1719581535339,-500.0,0.00022191,3]
[330577559,1719581535352,-1738.31,0.00022191,3]
[330577560,1719581535363,-1513.95,0.00022191,3]
[330577561,1719581535375,-500.0,0.00022191,3]
[330577562,1719581535386,-1314.72,0.00022191,3]
[330577563,1719581535398,-1400.67,0.00022191,3]
[330577564,1719581535409,-5728.45,0.00022191,3]
[330577565,1719581535421,-1222.24,0.00022191,3]
[330577566,1719581535435,-2631.35,0.00022191,3]
[330577567,1719581535447,-2245.26,0.00022191,3]
[330577568,1719581535458,-645.8220159,0.00022191,3]
[330577569,1719581535470,-500.0,0.00022191,3]
[330577570,1719581535483,-500.0,0.00022191,3]
[330577571,1719581535495,-500.0,0.00022191,3]
[330577572,1719581535506,-427.68969477,0.00022191,3]
[330577573,1719581535521,-1528.39,0.00022191,3]
[330577574,1719581535533,-1763.94,0.00022191,3]
[330577575,1719581535545,-500.0,0.00022191,3]
[330577576,1719581535556,-500.0,0.00022191,3]
[330577577,1719581535568,-500.0,0.00022191,3]
[330577578,1719581535580,-800.36,0.00022191,3]
[330577579,1719581535595,-3244.69,0.00022191,3]
[330577580,1719581535607,-552.11,0.00022191,3]
[330577581,1719581535619,-500.0,0.00022191,3]
[330577582,1719581535634,-1921.96,0.00022191,3]
[330577583,1719581535647,-1343.31,0.00022191,3]
[330577584,1719581535659,-929.24,0.00022191,3]
[330577585,1719581535671,-500.0,0.00022191,3]
[330577586,1719581535687,-500.0,0.00022191,3]
[330577587,1719581535700,-500.0,0.00022191,3]
[330577588,1719581535712,-500.0,0.00022191,3]
[330577589,1719581535726,-500.0,0.00022191,3]
[330577590,1719581535738,-500.0,0.00022191,3]
[330577591,1719581535750,-500.0,0.00022191,3]
[330577592,1719581535762,-649.79,0.00022191,3]
[330577593,1719581535774,-500.0,0.00022191,3]
[330577594,1719581535787,-500.0,0.00022191,3]
[330577595,1719581535799,-500.0,0.00022191,3]
[330577596,1719581535811,-1560.26,0.00022191,3]
[330577597,1719581535822,-598.91,0.00022191,3]
[330577598,1719581535835,-500.0,0.00022191,3]
[330577599,1719581535850,-500.0,0.00022191,3]
[330577600,1719581535862,-1200.47,0.00022191,3]
[330577601,1719581535874,-728.32,0.00022191,3]
[330577602,1719581535888,-5400.35,0.00022191,3]
[330577603,1719581535899,-1120.02,0.00022191,3]
[330577604,1719581535913,-500.0,0.00022191,3]
[330577605,1719581535926,-500.0,0.00022191,3]
[330577606,1719581535938,-500.0,0.00022191,3]
[330577607,1719581535950,-654.9,0.00022191,3]
[330577608,1719581535962,-1334.59,0.00022191,3]
[330577609,1719581535973,-500.0,0.00022191,3]
[330577610,1719581535985,-1106.63,0.00022191,3]
[330577611,1719581535997,-2113.23,0.00022191,3]
[330577612,1719581536010,-1151.1,0.00022191,3]
[330577613,1719581536022,-500.0,0.00022191,3]
[330577614,1719581536034,-3108.49,0.00022191,3]
[330577615,1719581536047,-539.26,0.00022191,2]
[330577616,1719581536059,-768.64,0.00022191,3]
[330577617,1719581536071,-500.0,0.00022191,3]
[330577618,1719581536083,-654.34,0.00022191,3]
[330577619,1719581536096,-998.61,0.00022191,3]
[330577620,1719581536109,-4276.13,0.00022191,3]
[330577621,1719581536122,-3646.44,0.00022191,3]
[330577622,1719581536134,-2939.82,0.00022191,3]
[330577623,1719581536146,-500.0,0.00022191,3]
[330577624,1719581536158,-1859.66,0.00022191,3]
[330577625,1719581536169,-9771.66,0.00022191,3]
[330577626,1719581536180,-500.0,0.00022191,3]
[330577627,1719581536192,-500.0,0.00022191,3]
[330577628,1719581536204,-541.59,0.00022191,3]
[330577629,1719581536215,-655.09,0.00022191,3]
[330577630,1719581536226,-1364.96,0.00022191,3]
[330577631,1719581536237,-1000.0,0.00022191,3]
[330577632,1719581536248,-500.0,0.00022191,3]
[330577633,1719581536261,-541.6,0.00022191,3]
[330577634,1719581536272,-500.0,0.00022191,3]
[330577635,1719581536284,-1563.36,0.00022191,3]
[330577636,1719581536295,-2735.37,0.00022191,3]
[330577637,1719581536307,-500.0,0.00022191,3]
[330577638,1719581536319,-1103.89,0.00022191,3]
[330577639,1719581536330,-668.34,0.00022191,3]
[330577640,1719581536344,-1059.29,0.00022191,3]
[330577641,1719581536355,-25237.64,0.00022191,3]
[330577642,1719581536366,-636.11,0.00022191,3]
[330577643,1719581536377,-500.0,0.00022191,3]
[330577644,1719581536388,-504.83,0.00022191,3]
[330577645,1719581536400,-1992.19,0.00022191,3]
[330577646,1719581536412,-500.0,0.00022191,3]
[330577647,1719581536425,-1356.54,0.00022191,3]
[330577648,1719581536441,-523.28,0.00022191,3]
[330577649,1719581536453,-6713.67,0.00022191,3]
[330577650,1719581536464,-796.18,0.00022191,3]
[330577651,1719581536476,-1204.58,0.00022191,3]
[330577652,1719581536488,-500.0,0.00022191,3]
[330577653,1719581536500,-802.68,0.00022191,3]
[330577654,1719581536512,-500.0,0.00022191,3]
[330577655,1719581536524,-500.0,0.00022191,3]
[330577656,1719581536536,-21752.02,0.00022191,3]
[330577657,1719581536548,-1788.91,0.00022191,3]
[330577658,1719581536561,-500.0,0.00022191,3]
[330577659,1719581536573,-3359.48,0.00022191,3]
[330577660,1719581536584,-500.0,0.00022191,3]
[330577661,1719581536598,-500.0,0.00022191,3]
[330577662,1719581536610,-908.57,0.00022191,3]
[330577663,1719581536622,-938.69,0.00022191,3]
[330577664,1719581536634,-500.0,0.00022191,3]
[330577665,1719581536646,-636.84,0.00022191,3]
[330577666,1719581536659,-1580.02,0.00022191,3]
[330577667,1719581536671,-1252.43,0.00022191,3]
[330577668,1719581536683,-500.0,0.00022191,3]
[330577669,1719581536696,-500.0,0.00022191,3]
[330577670,1719581536708,-1312.18,0.00022191,3]
[330577671,1719581536720,-1369.47,0.00022191,3]
[330577672,1719581536732,-500.0,0.00022191,3]
[330577673,1719581536744,-36919.91,0.00022191,3]
[330577674,1719581536768,-1025.73,0.00022191,3]
[330577675,1719581536781,-2463.28,0.00022191,3]
[330577676,1719581536792,-646.24,0.00022191,3]
[330577677,1719581536804,-2433.82,0.00022191,3]
[330577678,1719581536817,-1916.06,0.00022191,3]
[330577679,1719581536829,-887.74,0.00022191,3]
[330577680,1719581536843,-500.0,0.00022191,3]
[330577681,1719581536855,-500.0,0.00022191,3]
[330577682,1719581536867,-3562.83,0.00022191,3]
[330577683,1719581536880,-477.38,0.00022191,3]
[330577684,1719581536893,-500.0,0.00022191,3]
[330577685,1719581536905,-1329.94,0.00022191,3]
[330577686,1719581536917,-1636.65,0.00022191,3]
[330577687,1719581536930,-500.0,0.00022191,3]
[330577688,1719581536942,-978.9,0.00022191,3]
[330577689,1719581536955,-4426.91,0.00022191,3]
[330577690,1719581536967,-517.08,0.00022191,3]
[330577691,1719581536979,-1919.6,0.00022191,3]
[330577692,1719581536993,-570.85901937,0.00022191,3]
[330577693,1719581537005,-500.0,0.00022191,3]
[330577694,1719581537017,-2701.18,0.00022191,3]